bitfinex/quotes_BTCUSD_20250916
["timestamp","ask_amount","ask_price","bid_price","bid_amount"]
[1758046766034,0.00716105,116730.0,116720.0,1.84658136]
[1758046766260,0.00716105,116730.0,116720.0,1.84668136]
[1758046766486,0.00716105,116730.0,116720.0,2.20591855]
[1758046766705,0.00716105,116730.0,116720.0,1.84672136]
[1758046768528,0.00716105,116730.0,116720.0,2.20595855]
[1758046769215,0.00716105,116730.0,116720.0,2.54595855]
[1758046769683,0.00716105,116730.0,116720.0,2.27771855]
[1758046769981,0.00716105,116730.0,116720.0,2.54587855]
[1758046770224,0.00716105,116730.0,116720.0,2.27771855]
[1758046770438,0.00716105,116730.0,116720.0,2.54591855]
[1758046771347,0.00716105,116730.0,116720.0,2.27771855]
[1758046771472,0.00716105,116730.0,116720.0,2.54587855]
[1758046772507,0.00716105,116730.0,116720.0,2.54583855]
[1758046776945,0.00716105,116730.0,116720.0,2.57599045]
[1758046777608,0.00316105,116730.0,116720.0,2.57599045]
[1758046778025,0.00616105,116730.0,116720.0,2.57599045]
[1758046778162,0.00316105,116730.0,116720.0,2.57599045]
[1758046778570,0.00616105,116730.0,116720.0,2.57599045]
[1758046778995,0.00316105,116730.0,116720.0,2.57599045]
[1758046779293,0.00416105,116730.0,116720.0,2.57599045]
[1758046779855,0.00116105,116730.0,116720.0,2.57599045]
[1758046780063,0.00200001,116730.0,116720.0,2.57599045]
[1758046780294,1e-08,116730.0,116720.0,2.57599045]
[1758046780492,1e-08,116730.0,116720.0,2.10172413]
[1758046781255,1e-08,116730.0,116720.0,2.19200413]
[1758046781464,1e-08,116730.0,116720.0,2.24200413]
[1758046782085,1e-08,116730.0,116720.0,1.97388413]
[1758046782286,0.06920116,116770.0,116740.0,0.17988692]
[1758046782483,0.08523131,116770.0,116760.0,0.53257872]
[1758046782712,0.08523131,116770.0,116760.0,0.90247017]
[1758046783191,0.08523131,116770.0,116760.0,1.30247017]
[1758046783395,0.01603015,116770.0,116760.0,0.94323298]
[1758046783629,0.01603015,116770.0,116760.0,1.30257017]
[1758046783874,0.01903015,116770.0,116760.0,1.33684168]
[1758046784605,0.01603015,116770.0,116760.0,1.33684168]
[1758046784772,0.01703015,116770.0,116760.0,1.83684168]
[1758046785228,0.02003015,116770.0,116760.0,1.83684168]
[1758046785653,0.01703015,116770.0,116760.0,1.83684168]
[1758046785869,0.01703015,116770.0,116760.0,2.28453499]
[1758046786290,0.01903015,116770.0,116760.0,2.28453499]
[1758046786520,0.01903015,116770.0,116760.0,2.27881313]
[1758046786945,0.01903015,116770.0,116760.0,2.29283313]
[1758046788378,0.01903015,116770.0,116760.0,2.28320499]
[1758046788576,0.01903015,116770.0,116760.0,2.01516499]
[1758046788889,0.01903015,116770.0,116760.0,2.28449499]
[1758046789798,0.01903015,116770.0,116760.0,2.01645499]
[1758046790027,0.01903015,116770.0,116760.0,2.28449499]
[1758046790446,0.01903015,116770.0,116760.0,2.29407988]
[1758046792156,0.01903015,116770.0,116760.0,2.02603988]
[1758046792416,0.01903015,116770.0,116760.0,2.29407988]
[1758046792626,0.01903015,116770.0,116760.0,1.89061463]
[1758046793560,0.01903015,116770.0,116760.0,1.62128463]
[1758046793848,0.01903015,116770.0,116760.0,1.87973974]
[1758046795624,0.01903015,116770.0,116760.0,1.86571974]
[1758046795852,0.21947701,116770.0,116760.0,1.37370304]
[1758046796066,0.62294226,116770.0,116760.0,1.37370304]
[1758046796293,0.04501191,116770.0,116760.0,1.77922829]
[1758046796522,0.01907191,116770.0,116760.0,1.79324829]
[1758046797658,0.01907191,116770.0,116760.0,1.79453829]
[1758046800688,0.01907191,116770.0,116760.0,2.28450499]
[1758046801046,0.01907191,116770.0,116760.0,2.62450499]
[1758046802574,0.01907191,116770.0,116760.0,2.22450499]
[1758046802989,0.01907191,116770.0,116760.0,2.25465689]
[1758046803154,0.01907191,116770.0,116760.0,2.25461689]
[1758046803730,0.01907191,116770.0,116760.0,2.65461689]
[1758046804148,0.01907191,116770.0,116760.0,2.38661689]
[1758046804346,0.01907191,116770.0,116760.0,2.65461689]
[1758046805808,0.01907191,116770.0,116760.0,2.38661689]
[1758046806007,0.01907191,116770.0,116760.0,2.65461689]
[1758046806217,0.01907191,116770.0,116760.0,2.38661689]
[1758046806431,0.01907191,116770.0,116760.0,2.65461689]
[1758046808720,0.00308069,116770.0,116760.0,2.65461689]
[1758046810702,0.00208069,116770.0,116760.0,2.65461689]
[1758046810907,0.00108069,116770.0,116760.0,2.65461689]
[1758046811332,0.00208069,116770.0,116760.0,2.65461689]
[1758046811549,0.00208069,116770.0,116760.0,2.65457689]
[1758046813935,0.00208069,116770.0,116760.0,2.74485689]
[1758046816093,1e-08,116770.0,116760.0,3.14832214]
[1758046816303,1e-08,116770.0,116760.0,3.19832214]
[1758046816521,1e-08,116770.0,116760.0,2.7240452]
[1758046816947,0.01604999,116800.0,116790.0,0.17124753]
[1758046817156,0.01652074,116800.0,116790.0,1.46621388]
[1758046817368,0.00051075,116800.0,116790.0,1.46645913]
[1758046817584,0.00051075,116800.0,116790.0,1.86645913]
[1758046817761,0.00051075,116800.0,116790.0,1.86655913]
[1758046818220,0.00251075,116800.0,116790.0,1.86655913]
[1758046818431,0.00251075,116800.0,116790.0,2.36655913]
[1758046819078,0.00551075,116800.0,116790.0,2.36655913]
[1758046819312,0.00551075,116800.0,116790.0,2.09863913]
[1758046819530,0.00551075,116800.0,116790.0,2.36655913]
[1758046821112,0.00551075,116800.0,116790.0,2.09863913]
[1758046821347,0.00551075,116800.0,116790.0,2.36655913]
[1758046821561,0.00551075,116800.0,116790.0,1.69388388]
[1758046821790,0.00551075,116800.0,116790.0,1.96309388]
[1758046822423,0.00551075,116800.0,116790.0,2.36655913]
[1758046822638,0.00551075,116800.0,116790.0,1.96309388]
[1758046823738,0.00551075,116800.0,116790.0,1.96305388]
[1758046825260,0.00551075,116800.0,116790.0,1.69517388]
[1758046825499,0.00551075,116800.0,116790.0,1.96305388]
[1758046828948,0.00551075,116800.0,116790.0,1.69517388]
[1758046829159,0.00551075,116800.0,116790.0,1.96305388]
[1758046832464,0.00762075,116800.0,116790.0,1.67986388]
[1758046832676,0.60989887,116800.0,116790.0,1.42142753]
[1758046833109,0.60989887,116800.0,116790.0,1.02142753]
[1758046833324,0.20643362,116800.0,116790.0,1.42489278]
[1758046833740,0.20643362,116800.0,116790.0,1.02142753]
[1758046833944,0.20643362,116800.0,116790.0,1.42489278]
[1758046834149,0.20643362,116800.0,116790.0,1.47007577]
[1758046834781,0.03520075,116800.0,116790.0,1.47007577]
[1758046834990,0.03520075,116800.0,116790.0,1.87007577]
[1758046836734,0.03520075,116800.0,116790.0,1.87213577]
[1758046836735,0.00551075,116800.0,116790.0,1.87213577]
[1758046836925,0.00551075,116800.0,116790.0,2.37741247]
[1758046837565,0.00551075,116800.0,116790.0,2.71741247]
[1758046837783,0.00551075,116800.0,116790.0,2.74756437]
[1758046838859,0.00251075,116800.0,116790.0,2.74756437]
[1758046839065,0.00351075,116800.0,116790.0,2.74756437]
[1758046839503,0.00051075,116800.0,116790.0,2.74756437]
[1758046839721,0.00151075,116800.0,116790.0,2.74856437]
[1758046840141,0.00051075,116800.0,116790.0,2.74856437]
[1758046845828,0.00051075,116800.0,116790.0,2.65820541]
[1758046847144,0.00051075,116800.0,116790.0,2.38236541]
[1758046847654,0.00051075,116800.0,116790.0,2.65016541]
[1758046848939,0.00051075,116800.0,116790.0,2.38236541]
[1758046849360,0.00051075,116800.0,116790.0,2.02407964]
[1758046849784,0.00051075,116800.0,116790.0,2.29187964]
[1758046851020,0.00051075,116800.0,116790.0,2.02407964]
[1758046851215,0.00051075,116800.0,116790.0,2.29187964]
[1758046852808,0.00051075,116800.0,116790.0,2.02407964]
[1758046853030,0.00051075,116800.0,116790.0,2.29183964]
[1758046854103,0.00051075,116800.0,116790.0,2.02407964]
[1758046854307,0.00051075,116800.0,116790.0,2.29183964]
[1758046855230,0.00051075,116800.0,116790.0,2.02407964]
[1758046855434,0.00051075,116800.0,116790.0,2.29183964]
[1758046855642,0.00051075,116800.0,116790.0,2.02407964]
[1758046856122,0.00051075,116800.0,116790.0,2.29183964]
[1758046856297,4.51981075,116800.0,116790.0,2.29183964]
[1758046862511,4.51981075,116800.0,116790.0,2.65012541]
[1758046866496,4.51981075,116800.0,116790.0,2.29183964]
[1758046867428,4.51981075,116800.0,116790.0,2.65012541]
[1758046868524,4.08180377,116800.0,116790.0,2.75798343]
[1758046868775,4.02066937,116800.0,116790.0,2.75798343]
[1758046869006,4.02066937,116800.0,116790.0,2.65012541]
[1758046869466,3.51794615,116800.0,116790.0,2.74040541]
[1758046869899,3.51794615,116800.0,116790.0,2.498361]
[1758046870162,3.51794615,116800.0,116790.0,2.766081]
[1758046870601,3.51794615,116800.0,116790.0,2.74036541]
[1758046870818,3.51794615,116800.0,116790.0,2.29179964]
[1758046871680,3.51794615,116800.0,116790.0,2.62075964]
[1758046877377,3.51794615,116800.0,116790.0,2.33772964]
[1758046877582,3.51794615,116800.0,116790.0,2.26540964]
[1758046877791,3.51794615,116800.0,116790.0,2.30757774]
[1758046877995,3.52301615,116800.0,116790.0,1.87491197]
[1758046878211,3.54644615,116800.0,116790.0,2.57319774]
[1758046880834,3.54644615,116800.0,116790.0,2.21491197]
[1758046881833,3.54644615,116800.0,116790.0,1.94723197]
[1758046882044,3.54644615,116800.0,116790.0,2.16976898]
[1758046883948,3.54644615,116800.0,116790.0,1.82976898]
[1758046884637,3.54137615,116800.0,116790.0,1.83182898]
[1758046884867,3.51794615,116800.0,116790.0,1.84584898]
[1758046885090,3.51794615,116800.0,116790.0,2.20413475]
[1758046885352,3.51794615,116800.0,116790.0,1.84584898]
[1758046885531,3.51794615,116800.0,116790.0,1.83182898]
[1758046885729,3.51794615,116800.0,116790.0,2.20542475]
[1758046890714,3.51794615,116800.0,116790.0,2.57557665]
[1758046893370,3.51794615,116800.0,116790.0,2.21729088]
[1758046893570,3.51794615,116800.0,116790.0,2.57557665]
[1758046894431,3.51794615,116800.0,116790.0,2.60129259]
[1758046896083,3.51794615,116800.0,116790.0,2.60125259]
[1758046897500,3.51794615,116800.0,116790.0,2.33357259]
[1758046897710,3.51794615,116800.0,116790.0,2.60125259]
[1758046897951,3.51794615,116800.0,116790.0,2.33357259]
[1758046898147,3.51794615,116800.0,116790.0,2.60125259]
[1758046898363,3.51794615,116800.0,116790.0,2.33357259]
[1758046898801,3.51794615,116800.0,116790.0,2.57553665]
[1758046899470,3.51794615,116800.0,116790.0,2.30785665]
[1758046899689,3.51794615,116800.0,116790.0,2.57553665]
[1758046900285,3.51794615,116800.0,116790.0,2.57424665]
[1758046901281,3.51794615,116800.0,116790.0,2.56022665]
[1758046901487,3.51794615,116800.0,116790.0,2.20194088]
[1758046901709,3.52312615,116800.0,116790.0,1.93426088]
[1758046901919,3.52312615,116800.0,116790.0,1.85988088]
[1758046902132,3.54679615,116800.0,116790.0,1.85988088]
[1758046902340,3.54363615,116800.0,116790.0,2.20194088]
[1758046902560,3.51996615,116800.0,116790.0,2.20194088]
[1758046904078,3.54363615,116800.0,116790.0,2.20194088]
[1758046904935,3.54679615,116800.0,116790.0,2.19988088]
[1758046905573,3.69435902,116800.0,116790.0,1.73080145]
[1758046905788,3.71802902,116800.0,116790.0,2.16972898]
[1758046907402,4.07631479,116800.0,116790.0,2.16972898]
[1758046907608,4.07631479,116800.0,116790.0,1.65848145]
[1758046907825,4.12141772,116800.0,116790.0,1.82972898]
[1758046908051,4.12151772,116800.0,116790.0,1.65848145]
[1758046908938,4.12151772,116800.0,116790.0,1.82972898]
[1758046909167,4.12151772,116800.0,116790.0,1.65848145]
[1758046910418,3.71812902,116800.0,116790.0,1.61196898]
[1758046910634,4.12151772,116800.0,116790.0,1.61196898]
[1758046910857,4.12151772,116800.0,116790.0,1.83762898]
[1758046911817,3.52006615,116800.0,116790.0,1.83968898]
[1758046912035,3.51804615,116800.0,116790.0,2.24307768]
[1758046912234,3.52006615,116800.0,116790.0,2.24307768]
[1758046912670,3.54373615,116800.0,116790.0,2.24317768]
[1758046912878,3.54669615,116800.0,116790.0,2.24317768]
[1758046913076,3.71792902,116800.0,116790.0,2.24317768]
[1758046913583,3.54669615,116800.0,116790.0,1.83772898]
[1758046914156,3.71792902,116800.0,116790.0,1.83772898]
[1758046914388,4.12131772,116800.0,116790.0,1.66648145]
[1758046914709,3.71792902,116800.0,116790.0,1.66648145]
[1758046914882,4.12131772,116800.0,116790.0,1.66648145]
[1758046915461,4.12131772,116800.0,116790.0,1.39880145]
[1758046915862,4.12131772,116800.0,116790.0,1.66648145]
[1758046916709,4.12131772,116800.0,116790.0,1.39880145]
[1758046916964,4.12131772,116800.0,116790.0,1.66648145]
[1758046918792,4.12131772,116800.0,116790.0,0.76882]
[1758046918793,4.53385377,116800.0,116790.0,0.76882]
[1758046919014,4.15619199,116800.0,116790.0,0.76882]
[1758046919235,4.15619199,116800.0,116790.0,1.16882]
[1758046919547,4.15619199,116800.0,116790.0,0.76882]
[1758046919754,4.15619199,116800.0,116790.0,0.5011]
[1758046919894,4.15619199,116800.0,116790.0,0.76882]
[1758046920901,4.14704464,116800.0,116790.0,0.76882]
[1758046927634,4.14704464,116800.0,116790.0,0.26882]
[1758046928493,3.74365594,116800.0,116790.0,0.31283813]
[1758046928711,4.14704464,116800.0,116790.0,0.31283813]
[1758046929140,4.14704464,116800.0,116790.0,0.26882]
[1758046929646,4.14704464,116800.0,116790.0,0.66882]
[1758046931045,3.74365594,116800.0,116790.0,0.66882]
[1758046931264,4.14704464,116800.0,116790.0,0.66882]
[1758046932565,4.12131772,116800.0,116790.0,0.26882]
[1758046932990,4.12131772,116800.0,116790.0,0.66882]
[1758046933207,4.12131772,116800.0,116790.0,0.84006753]
[1758046933646,3.52302615,116800.0,116790.0,0.84006753]
[1758046933858,3.54393615,116800.0,116790.0,0.92862898]
[1758046934640,3.51804615,116800.0,116790.0,0.92862898]
[1758046935273,3.51804615,116800.0,116790.0,0.66090898]
[1758046935483,3.51804615,116800.0,116790.0,0.92862898]
[1758046935689,3.52016615,116800.0,116790.0,0.92862898]
[1758046937900,3.51794615,116800.0,116790.0,1.67201768]
[1758046938048,3.51794615,116800.0,116790.0,1.68603768]
[1758046938253,3.51794615,116800.0,116790.0,1.41960768]
[1758046938488,3.51794615,116800.0,116790.0,1.68732768]
[1758046939288,3.51794615,116800.0,116790.0,1.01621898]
[1758046939517,3.51794615,116800.0,116790.0,1.68603768]
[1758046939950,3.51794615,116800.0,116790.0,1.41831768]
[1758046940198,3.51794615,116800.0,116790.0,1.68603768]
[1758046940401,3.51794615,116800.0,116790.0,1.68732768]
[1758046941831,3.51794615,116800.0,116790.0,2.09071638]
[1758046943086,3.51794615,116800.0,116790.0,2.09067638]
[1758046944324,3.51794615,116800.0,116790.0,2.32299638]
[1758046944525,3.51794615,116800.0,116790.0,2.59067638]
[1758046944917,3.51794615,116800.0,116790.0,2.32299638]
[1758046945118,3.51794615,116800.0,116790.0,2.59067638]
[1758046947601,3.51794615,116800.0,116790.0,2.57536638]
[1758046947800,3.54690615,116800.0,116790.0,1.90223768]
[1758046948017,3.54690615,116800.0,116790.0,2.16991768]
[1758046948572,3.54690615,116800.0,116790.0,1.90223768]
[1758046948782,3.54690615,116800.0,116790.0,2.16991768]
[1758046949195,3.54690615,116800.0,116790.0,1.90223768]
[1758046949608,3.54690615,116800.0,116790.0,2.16991768]
[1758046950011,3.54690615,116800.0,116790.0,2.25215768]
[1758046951368,3.54690615,116800.0,116790.0,2.25211768]
[1758046961649,3.52303615,116800.0,116790.0,1.98447768]
[1758046961917,4.12143772,116800.0,116790.0,1.27748145]
[1758046962106,4.20793917,116800.0,116790.0,0.93748145]
[1758046962346,4.12143772,116800.0,116790.0,0.58334]
[1758046962578,4.12143772,116800.0,116790.0,0.85098]
[1758046964094,4.12153772,116800.0,116790.0,0.85098]
[1758046965342,4.12153772,116800.0,116790.0,0.76874]
[1758046965887,4.12153772,116800.0,116790.0,1.16874]
[1758046966100,4.16859843,116800.0,116790.0,0.76874]
[1758046966243,4.12153772,116800.0,116790.0,0.5011]
[1758046966460,4.12153772,116800.0,116790.0,1.16874]
[1758046967254,4.12153772,116800.0,116790.0,0.76874]
[1758046967936,4.0767912,116800.0,116790.0,0.76874]
[1758046968658,4.0767912,116800.0,116790.0,0.5011]
[1758046968780,4.0767912,116800.0,116790.0,0.76874]
[1758046970119,4.0767912,116800.0,116790.0,0.5011]
[1758046970331,4.0767912,116800.0,116790.0,0.76874]
[1758046971199,4.0767912,116800.0,116790.0,0.26874]
[1758046972771,3.71814902,116800.0,116790.0,0.26874]
[1758046972981,4.0767912,116800.0,116790.0,0.26874]
[1758046973924,4.0767912,116800.0,116790.0,0.0011]
[1758046974127,4.0767912,116800.0,116790.0,0.26874]
[1758046977332,4.0767912,116800.0,116790.0,0.0011]
[1758046977530,4.0767912,116800.0,116790.0,0.26874]
[1758046980347,4.0767912,116800.0,116790.0,0.0011]
[1758046980513,4.43093265,116800.0,116790.0,0.0011]
[1758046980715,4.43093265,116800.0,116790.0,0.26874]
[1758046980926,4.37015982,116800.0,116790.0,0.26874]
[1758046981128,4.01151764,116800.0,116790.0,0.26864]
[1758046981327,4.37015982,116800.0,116790.0,0.26864]
[1758046981655,4.37015982,116800.0,116790.0,0.26764]
[1758046981856,4.37215982,116800.0,116790.0,0.26764]
[1758046982071,4.37315982,116800.0,116790.0,0.26764]
[1758046982256,0.17124753,116790.0,116780.0,0.26774]
[1758046982493,0.55976971,116790.0,116780.0,0.26774]
[1758046983171,0.55986971,116790.0,116780.0,0.26774]
[1758046984381,0.56086971,116790.0,116780.0,0.26774]
[1758046984614,0.56086971,116790.0,116780.0,0.66774]
[1758046984827,0.56086971,116790.0,116780.0,0.4001]
[1758046985020,0.56086971,116790.0,116780.0,0.26774]
[1758046985458,0.56086971,116790.0,116780.0,0.66774]
[1758046986093,0.56086971,116790.0,116780.0,0.26774]
[1758046988300,0.63275695,116790.0,116780.0,0.0001]
[1758046988501,0.63275695,116790.0,116780.0,0.26774]
[1758046988696,0.56086971,116790.0,116780.0,0.26774]
[1758046988910,0.1712622,116780.0,116770.0,0.08234]
[1758046989114,0.52990438,116780.0,116770.0,0.26774]
[1758046989323,0.55998438,116780.0,116770.0,0.26774]
[1758046989743,0.62539322,116780.0,116770.0,0.26774]
[1758046989950,0.62539322,116780.0,116770.0,0.0001]
[1758046989951,0.63414114,116780.0,116770.0,0.0001]
[1758046990152,0.63424114,116780.0,116770.0,0.26774]
[1758046990358,0.65997449,116780.0,116770.0,0.26774]
[1758046990800,0.6760052,116780.0,116770.0,0.26774]
[1758046991131,0.6760052,116780.0,116770.0,0.26874]
[1758046991341,0.6780052,116780.0,116770.0,0.26864]
[1758046991551,0.6780052,116780.0,116770.0,0.26764]
[1758046991764,0.17127686,116770.0,116760.0,0.26774]
[1758046991975,0.55795904,116770.0,116760.0,0.26774]
[1758046992188,0.55999904,116770.0,116760.0,0.26774]
[1758046992411,0.56009904,116770.0,116760.0,0.26774]
[1758046993010,0.56009904,116770.0,116760.0,0.0001]
[1758046993011,0.58683338,116770.0,116760.0,0.0001]
[1758046993243,0.58683338,116770.0,116760.0,0.26774]
[1758046993639,0.58783338,116770.0,116760.0,0.26774]
[1758046994387,0.60385943,116770.0,116760.0,0.26774]
[1758046995472,0.24521725,116770.0,116760.0,0.51848603]
[1758046995694,0.24521725,116770.0,116760.0,0.26774]
[1758046995913,0.24521725,116770.0,116760.0,0.43903153]
[1758046996150,0.2291912,116770.0,116760.0,0.26774]
[1758046996353,0.24521406,116770.0,116760.0,0.43903153]
[1758046997340,0.24521406,116770.0,116760.0,0.26774]
[1758046997973,0.2291912,116770.0,116760.0,0.26774]
[1758046998265,0.2291912,116770.0,116760.0,0.66774]
[1758046998471,0.24521261,116770.0,116760.0,0.66774]
[1758046999328,0.24521261,116770.0,116760.0,0.83903153]
[1758046999694,0.24521261,116770.0,116760.0,0.26774]
[1758047001465,0.24521261,116770.0,116760.0,0.43903153]
[1758047001678,0.24521261,116770.0,116760.0,0.26774]
[1758047003168,0.24521261,116770.0,116760.0,0.43903153]
[1758047003809,0.24521507,116770.0,116760.0,0.26774]
[1758047004012,0.24521507,116770.0,116760.0,0.66774]
[1758047005897,0.24521721,116770.0,116760.0,0.66774]
[1758047006964,0.24521721,116770.0,116760.0,0.26774]
[1758047007548,0.24521721,116770.0,116760.0,0.4001]
[1758047007773,0.60385939,116770.0,116760.0,0.66774]
[1758047008445,0.60385939,116770.0,116760.0,0.26774]
[1758047009935,0.24521721,116770.0,116760.0,0.26774]
[1758047010164,0.60385939,116770.0,116760.0,0.26774]
[1758047013884,0.01812601,116770.0,116760.0,0.88623516]
[1758047014125,0.0021,116770.0,116760.0,0.90154516]
[1758047015309,0.002,116770.0,116760.0,0.90154516]
[1758047015910,0.002,116770.0,116760.0,2.00018734]
[1758047016829,0.002,116770.0,116760.0,1.73254734]
[1758047017038,0.002,116770.0,116760.0,2.00018734]
[1758047017224,0.002,116770.0,116760.0,1.76269924]
[1758047017459,0.002,116770.0,116760.0,2.03033924]
[1758047017885,0.0001,116790.0,116780.0,0.5112622]
[1758047018108,3.51804615,116800.0,116790.0,0.17124753]
[1758047018384,3.51804615,116800.0,116790.0,0.20445228]
[1758047018613,3.51804615,116800.0,116790.0,0.61845116]
[1758047018835,3.51804615,116800.0,116790.0,1.03376116]
[1758047019048,3.51804615,116800.0,116790.0,1.30140116]
[1758047019206,3.51794615,116800.0,116790.0,1.30140116]
[1758047019607,3.51994615,116800.0,116790.0,1.30140116]
[1758047020276,3.52194615,116800.0,116790.0,1.30140116]
[1758047020678,3.69317902,116800.0,116790.0,1.30916093]
[1758047020898,3.69317902,116800.0,116790.0,1.30912093]
[1758047021076,3.69317902,116800.0,116790.0,0.69408066]
[1758047021285,3.69317902,116800.0,116790.0,0.51388336]
[1758047021487,3.69515902,116800.0,116790.0,0.92750898]
[1758047021691,3.71868902,116800.0,116790.0,0.92750898]
[1758047022444,3.72191902,116800.0,116790.0,0.92750898]
[1758047023336,3.72191902,116800.0,116790.0,0.48866145]
[1758047023569,3.72191902,116800.0,116790.0,0.0001]
[1758047023570,4.0805612,116800.0,116790.0,0.0001]
[1758047023791,4.10628965,116800.0,116790.0,0.0001]
[1758047024040,4.10638965,116800.0,116790.0,0.0001]
[1758047024742,4.1928911,116800.0,116790.0,0.0001]
[1758047024963,4.10638965,116800.0,116790.0,0.0001]
[1758047025392,0.17124753,116790.0,116780.0,0.4001]
[1758047025605,0.52988971,116790.0,116780.0,0.6677]
[1758047025810,0.55862971,116790.0,116780.0,0.6677]
[1758047026269,0.55872971,116790.0,116780.0,0.6677]
[1758047026685,0.58645851,116790.0,116780.0,0.6677]
[1758047027189,0.58645851,116790.0,116780.0,0.2677]
[1758047027604,0.58645851,116790.0,116780.0,0.6677]
[1758047029852,0.63132083,116790.0,116780.0,0.6677]
[1758047030659,0.63132083,116790.0,116780.0,0.2677]
[1758047031096,0.63132083,116790.0,116780.0,0.6677]
[1758047033033,0.22781633,116790.0,116780.0,0.6677]
[1758047033240,0.63132083,116790.0,116780.0,0.6677]
[1758047034047,0.63132083,116790.0,116780.0,0.2677]
[1758047034482,0.63132083,116790.0,116780.0,0.6677]
[1758047037801,0.63132083,116790.0,116780.0,0.2677]
[1758047038221,0.63132083,116790.0,116780.0,0.6677]
[1758047039566,0.22781633,116790.0,116780.0,0.6677]
[1758047039769,0.63132083,116790.0,116780.0,0.6677]
[1758047040397,0.22781633,116790.0,116780.0,0.8389622]
[1758047040612,0.19907633,116790.0,116780.0,0.8410222]
[1758047040821,0.17334753,116790.0,116780.0,0.8550422]
[1758047041423,0.0021,116790.0,116780.0,1.2445267]
[1758047041626,0.0021,116790.0,116780.0,1.2598367]
[1758047042074,0.0021,116790.0,116780.0,0.8563322]
[1758047042306,0.0021,116790.0,116780.0,1.2598367]
[1758047042498,0.17334753,116790.0,116780.0,1.2598367]
[1758047042737,0.0021,116790.0,116780.0,1.2598367]
[1758047044037,0.0021,116790.0,116780.0,1.33231815]
[1758047044180,0.0021,116790.0,116780.0,1.34633815]
[1758047045194,0.002,116790.0,116780.0,1.34633815]
[1758047045720,0.002,116790.0,116780.0,1.68633815]
[1758047047024,0.002,116790.0,116780.0,1.41873815]
[1758047047238,0.002,116790.0,116780.0,1.68629815]
[1758047047458,0.002,116790.0,116780.0,1.41873815]
[1758047047647,0.002,116790.0,116780.0,1.68629815]
[1758047049804,0.002,116790.0,116780.0,1.41873815]
[1758047050015,0.002,116790.0,116780.0,1.68625815]
[1758047052696,0.002,116790.0,116780.0,1.41873815]
[1758047052917,0.002,116790.0,116780.0,1.68625815]
[1758047054577,0.002,116790.0,116780.0,2.08976265]
[1758047055536,0.002,116790.0,116780.0,2.17200265]
[1758047056383,0.002,116790.0,116780.0,1.90448265]
[1758047056558,0.002,116790.0,116780.0,2.17200265]
[1758047056819,0.002,116790.0,116780.0,1.76849815]
[1758047059319,0.002,116790.0,116780.0,1.76845815]
[1758047059811,0.002,116790.0,116780.0,2.26845815]
[1758047060035,0.002,116790.0,116780.0,2.00097815]
[1758047060272,0.002,116790.0,116780.0,2.26845815]
[1758047063395,0.002,116790.0,116780.0,2.67196265]
[1758047064341,0.002,116790.0,116780.0,2.26845815]
[1758047065512,0.002,116790.0,116780.0,2.3320966]
[1758047067300,0.002,116790.0,116780.0,2.7356011]
[1758047070911,0.002,116790.0,116780.0,1.9285921]
[1758047071085,0.002,116790.0,116780.0,2.7356011]
[1758047073949,0.002,116790.0,116780.0,2.3320966]
[1758047080040,0.002,116790.0,116780.0,2.7356011]
[1758047082615,0.002,116790.0,116780.0,2.3320966]
[1758047084107,0.00417,116790.0,116780.0,1.33010595]
[1758047084367,0.27056869,116790.0,116780.0,0.76754]
[1758047084591,0.20136753,116790.0,116780.0,0.76754]
[1758047084816,0.20136753,116790.0,116780.0,1.16754]
[1758047085271,0.60487203,116790.0,116780.0,1.16754]
[1758047085843,0.60497203,116790.0,116780.0,1.16754]
[1758047086844,0.60497203,116790.0,116780.0,0.76754]
[1758047087383,0.63070275,116790.0,116780.0,0.76754]
[1758047088924,0.63070275,116790.0,116780.0,0.26754]
[1758047089985,0.93991106,116790.0,116780.0,0.26754]
[1758047091553,1.32607849,116790.0,116780.0,0.0001]
[1758047092286,0.1712622,116780.0,116770.0,0.0001]
[1758047092510,0.63255054,116780.0,116770.0,0.0001]
[1758047092749,0.66067054,116780.0,116770.0,0.0001]
[1758047092978,0.91209501,116780.0,116770.0,0.0001]
[1758047093182,0.91219501,116780.0,116770.0,0.0001]
[1758047093395,0.64475501,116780.0,116770.0,0.0001]
[1758047093611,0.91219501,116780.0,116770.0,0.0001]
[1758047093837,0.55342365,116780.0,116770.0,0.0001]
[1758047094045,0.55442365,116780.0,116770.0,0.0001]
[1758047094746,0.58115892,116780.0,116770.0,0.0001]
[1758047095394,0.31371892,116780.0,116770.0,0.0001]
[1758047095616,0.67249028,116780.0,116770.0,0.0001]
[1758047099570,0.75899173,116780.0,116770.0,0.0001]
[1758047099820,0.67249028,116780.0,116770.0,0.0001]
[1758047100041,0.93997028,116780.0,116770.0,0.0001]
[1758047100846,0.29074892,116780.0,116770.0,0.0001]
[1758047101077,0.22713747,116780.0,116770.0,0.0001]
[1758047101325,0.21909747,116780.0,116770.0,0.53220822]
[1758047101546,0.22125747,116780.0,116770.0,0.53220822]
[1758047101759,0.1955222,116780.0,116770.0,0.53220822]
[1758047102173,0.2184122,116780.0,116770.0,0.53220822]
[1758047102399,0.2216422,116780.0,116770.0,0.17343686]
[1758047103037,0.1933622,116780.0,116770.0,0.53220822]
[1758047103267,0.1933622,116780.0,116770.0,0.61448822]
[1758047103484,0.0221,116780.0,116770.0,0.62850822]
[1758047103692,0.0221,116780.0,116770.0,1.02850822]
[1758047104116,0.0221,116780.0,116770.0,0.66973686]
[1758047104331,0.0221,116780.0,116770.0,1.02850822]
[1758047105237,0.0221,116780.0,116770.0,1.11629967]
[1758047105463,0.022,116780.0,116770.0,1.11629967]
[1758047105901,0.2224522,116780.0,116770.0,0.74986]
[1758047106335,0.2224522,116780.0,116770.0,0.75191]
[1758047106576,0.1952222,116780.0,116770.0,1.28195822]
[1758047106770,0.1932622,116780.0,116770.0,1.29597822]
[1758047107215,0.1932622,116780.0,116770.0,1.12470136]
[1758047107403,0.1932622,116780.0,116770.0,1.11068136]
[1758047107835,0.1932622,116780.0,116770.0,0.84320136]
[1758047108046,0.1932622,116780.0,116770.0,1.11068136]
[1758047108256,0.1952222,116780.0,116770.0,1.11068136]
[1758047108471,0.1952222,116780.0,116770.0,1.28195822]
[1758047109655,0.1952222,116780.0,116770.0,0.84320136]
[1758047109847,0.2192922,116780.0,116770.0,1.11068136]
[1758047110231,0.2224522,116780.0,116770.0,1.11068136]
[1758047110654,0.2224522,116780.0,116770.0,1.10863136]
[1758047111312,0.2224522,116780.0,116770.0,0.74986]
[1758047111735,0.2224522,116780.0,116770.0,0.74982]
[1758047113072,0.022,116780.0,116770.0,0.92314686]
[1758047113299,0.1932622,116780.0,116770.0,0.92314686]
[1758047113488,0.1932622,116780.0,116770.0,0.93716686]
[1758047113694,0.1932622,116780.0,116770.0,0.92314686]
[1758047114017,0.1932622,116780.0,116770.0,1.28191822]